[Event "2017 South African Open Ch"]
[Site "Durban"]
[Date "2017.07.15"]
[Round "3"]
[White "Solomons, Deon"]
[Black "Nkuna, Windsor"]
[Result "1-0"]
[ECO "A05"]
[WhiteElo "2120"]
[BlackElo "1437"]
[Annotator "ChessBase"]
[PlyCount "87"]
[EventDate "2017.??.??"]
[EventCountry "RSA"]
[SourceTitle "playchess.com"]
[Source "ChessBase"]
[SourceQuality "1"]
[TimeControl "5400+30"]

1. Nf3 {[%emt 0:00:00]} Nf6 {[%emt 0:00:13]} 2. g3 {[%emt 0:00:00]} e6 {[%emt 0:00:08]} 3. c4 {[%emt 0:00:01]} d5 {[%emt 0:00:09]} 4. Bg2 {[%emt 0:00:24]} c5 {[%emt 0:00:15]} 5. O-O {[%emt 0:00:25]} Be7 {[%emt 0:00:08]} 6. d4 {[%emt 0:00:31]} O-O {[%emt 0:00:36]} 7. cxd5 {[%emt 0:01:51]} exd5 {[%emt 0:00:27]} 8. Nc3 {[%emt 0:00:06]} Be6 {[%emt 0:00:20]} 9. Bg5 {[%emt 0:06:22]} cxd4 {[%emt 0:06:50]} 10. Nxd4 {[%emt 0:01:43]} Nc6 {[%emt 0:00:07]} 11. Rc1 {[%emt 0:02:57]} Rc8 {[%emt 0:10:16]} 12. Nxe6 {[%emt 0:04:22]} fxe6 {[%emt 0:05:35]} 13. Bh3 {[%emt 0:00:08]} Qd7 {[%emt 0:02:31]} 14. e4 {[%emt 0:00:33]} d4 {[%emt 0:03:27]} 15. Qb3 {[%emt 0:01:04]} Nd8 {[%emt 0:03:13]} 16. Rcd1 {[%emt 0:00:54]} Kh8 {[%emt 0:01:45]} 17. e5 {[%emt 0:03:48]} Ng8 {[%emt 0:01:28]} 18. Ne4 {[%emt 0:04:45]} Rc6 {[%emt 0:05:52]} 19. Qd3 {[%emt 0:04:14]} Rb6 {[%emt 0:01:16]} 20. Qxd4 {[%emt 0:03:01]} Qxd4 {[%emt 0:00:20]} 21. Rxd4 {[%emt 0:00:01]} Rxb2 {[%emt 0:00:20]} 22. Rd7 {[%emt 0:00:11]} Re2 {[%emt 0:16:58]} 23. Bxe7 {[%emt 0:09:18]} Nxe7 {[%emt 0:00:02]} 24. Ng5 {[%emt 0:00:14]} Nec6 {[%emt 0:02:56]} 25. f4 {[%emt 0:01:36]} Re8 {[%emt 0:01:05]} 26. Rf2 {[%emt 0:00:03]} Re1+ {[%emt 0:00:26]} 27. Kg2 {[%emt 0:00:04]} h6 {[%emt 0:00:14]} 28. Nf3 {[%emt 0:00:15]} Re3 {[%emt 0:01:25]} 29. Rfd2 {[%emt 0:00:38]} b5 {[%emt 0:01:53]} 30. Nd4 {[%emt 0:03:13]} Nxd4 {[%emt 0:00:28]} 31. R7xd4 {[%emt 0:00:19]} Nc6 {[%emt 0:00:45]} 32. Rd6 {[%emt 0:00:02]} Na5 {[%emt 0:01:15]} 33. Bxe6 {[%emt 0:00:17]} Nb7 {[%emt 0:01:01]} 34. Rd7 {[%emt 0:01:33]} Nc5 {[%emt 0:01:15]} 35. Rd8 {[%emt 0:00:10]} Re2+ {[%emt 0:01:13]} 36. Kh3 {[%emt 0:01:41]} Rxd2 {[%emt 0:00:22]} 37. Rxe8+ {[%emt 0:00:05]} Kh7 {[%emt 0:00:09]} 38. Bg8+ {[%emt 0:00:48]} Kg6 {[%emt 0:00:14]} 39. Rc8 {[%emt 0:00:17]} Nd7 {[%emt 0:03:03]} 40. Rc6+ {[%emt 0:00:59]} Nf6 {[%emt 0:00:23]} 41. exf6 {[%emt 0:02:40]} gxf6 {[%emt 0:00:02]} 42. Rc7 {[%emt 0:00:07]} h5 {[%emt 0:01:57]} 43. Bh7+ {[%emt 0:00:14]} Kh6 {[%emt 0:00:03]} 44. Bf5 {[%emt 0:00:14]} 1-0

[Event "2017 South African Open Ch"]
[Site "Durban"]
[Date "2017.07.16"]
[Round "4"]
[White "Makoto, Rodwell"]
[Black "De Abreu, Roberto N"]
[Result "1-0"]
[ECO "A04"]
[WhiteElo "2372"]
[BlackElo "2145"]
[Annotator "NA RC"]
[PlyCount "92"]
[EventDate "2017.??.??"]
[EventCountry "RSA"]
[SourceTitle "playchess.com"]
[Source "ChessBase"]
[SourceQuality "1"]
[TimeControl "5400+30"]

{[%evp 19,92,56,52,45,61,53,112,113,110,117,127,128,138,133,130,122,119,86,87,87,93,97,94,93,100,87,87,78,78,78,78,78,79,78,79,79,82,64,64,61,93,80,93,83,93,90,102,102,110,110,109,97,101,85,89,88,94,76,111,111,107,77,98,95,95,91,157,160,200,100,140,114,167,149,239]} 1. Nf3 {[%emt 0:00:00]} c5 {[%emt 0:02:39]} 2. g3 {[%emt 0:01:09]} Nc6 {[%emt 0:00:11]} 3. d4 {[%emt 0:01:00]} cxd4 {[%emt 0:00:09]} 4. Nxd4 {[%emt 0:00:04]} Nf6 {[%emt 0:00:34]} 5. Bg2 {[%emt 0:00:13]} d5 {[%emt 0:01:54]} 6. c4 {[%emt 0:01:16]} e5 {[%emt 0:06:57]} 7. Nxc6 {[%emt 0:00:21]} bxc6 {[%emt 0:00:02]} 8. O-O {[%emt 0:01:20]} Be7 {[%emt 0:03:01]} 9. Nc3 {[%emt 0:00:52]} Be6 {[%emt 0:02:54]} 10. Bg5 {[%emt 0:03:49]} e4 {[%emt 0:01:17] LiveBook: 7 Games. D02: 1 d4 d5 2 Nf3 sidelines, including 2...Nf6 3 g3 and 2...Nf6 3 Bf4} 11. Qa4 {[%emt 0:02:02] [#] Threatens to win with Bxf6.} O-O {[%emt 0:02:25]} 12. Rad1 {[%emt 0:04:52]} Qb6 {[%emt 0:04:48]} (12... Qe8 $14) 13. cxd5 $16 {[%emt 0:04:50]} cxd5 {[%emt 0:02:18]} 14. Bxf6 $1 {[%emt 0:01:09]} Bxf6 {[%emt 0:00:01]} 15. Nxd5 {[%emt 0:00:09]} Bxd5 16. Rxd5 {[%emt 0:00:21]} Qxb2 {[%emt 0:01:10]} 17. e3 {[%emt 0:00:51]} ({Much worse is} 17. Qxe4 $6 Rae8 $11) ({But not} 17. Bxe4 $6 Qxe2 18. Bd3 Qe6 $14) 17... Rab8 {[%emt 0:27:07]} 18. Bxe4 {[%emt 0:03:28]} Rb4 $146 {[%emt 0:02:49]} 19. Qc2 {[%emt 0:00:09]} Qxc2 {[%emt 0:00:15]} 20. Bxc2 {[%emt 0:00:09]} Rb7 {[%emt 0:06:03]} 21. Rfd1 {[%emt 0:00:30]} Rc8 {[%emt 0:01:34]} 22. Bf5 {[%emt 0:04:08]} Re8 {[%emt 0:00:35]} 23. Rd7 {[%emt 0:00:21]} Rxd7 {[%emt 0:00:18]} 24. Rxd7 {[%emt 0:00:12] Endgame KRB-KRB} g6 {[%emt 0:00:56]} 25. Bc2 {[%emt 0:02:56]} Re7 {[%emt 0:00:08]} 26. Rd5 {[%emt 0:01:13]} Re5 {[%emt 0:03:34]} 27. Rd3 {[%emt 0:00:15]} Re7 {[%emt 0:00:07]} 28. f4 {[%emt 0:00:36]} Rc7 {[%emt 0:00:22]} 29. Bb3 {[%emt 0:00:32]} Be7 {[%emt 0:02:51]} 30. Kf2 {[%emt 0:01:29]} Kg7 {[%emt 0:00:33]} 31. e4 {[%emt 0:01:13]} Bc5+ {[%emt 0:00:23]} 32. Kf3 {[%emt 0:00:23]} Bb4 {[%emt 0:00:56]} 33. Rd5 {[%emt 0:01:04]} h5 {[%emt 0:01:00]} 34. e5 {[%emt 0:00:48]} Bc5 {[%emt 0:00:43]} 35. h3 {[%emt 0:00:29]} Bb6 {[%emt 0:00:27]} 36. Ke4 {[%emt 0:04:53]} Rc3 {[%emt 0:01:37] [#]} 37. f5 {[%emt 0:08:08]} gxf5+ {[%emt 0:10:11]} 38. Kf4 {[%emt 0:00:56]} Rc7 {[%emt 0:01:48]} 39. Kxf5 {[%emt 0:00:58]} Bf2 {[%emt 0:00:06]} 40. Kf4 {[%emt 0:02:38]} h4 {[%emt 0:00:38]} 41. g4 {[%emt 0:04:35]} Bg3+ {[%emt 0:00:05]} 42. Kf5 {[%emt 0:00:39]} Re7 {[%emt 0:00:01]} (42... Rb7 $142 43. Rc5 a6) 43. g5 {[%emt 0:03:01]} Bh2 {[%emt 0:00:47]} 44. Bc4 {[%emt 0:03:24]} ({White should try} 44. Ra5 $18) 44... Bg3 {[%emt 0:00:57]} 45. a4 {[%emt 0:00:10]} Bh2 {[%emt 0:00:19]} (45... Rc7 $16 {is a better defense.} 46. Bd3 Re7) 46. a5 {[%emt 0:00:33]} Bg3 {[%emt 0:00:09] Precision: White = 59%, Black = 60%.} (46... Rc7 $16 47. Bb5 Re7) 1-0

[Event "2017 South African Open Ch"]
[Site "Durban"]
[Date "2017.07.16"]
[Round "4"]
[White "Kobese, Watu"]
[Black "Abrantes, Persson"]
[Result "1-0"]
[ECO "B08"]
[WhiteElo "2367"]
[BlackElo "2003"]
[Annotator "NA RC"]
[PlyCount "55"]
[EventDate "2017.??.??"]
[EventCountry "RSA"]
[SourceTitle "playchess.com"]
[Source "ChessBase"]
[SourceQuality "1"]
[TimeControl "5400+30"]

{[%evp 11,55,20,84,74,79,79,139,147,154,61,74,61,61,61,61,61,64,59,55,56,89,36,71,59,69,41,37,37,27,-51,-37,-39,-31,-58,-52,-113,-78,-81,-76,-98,-39,-137,0,26,61,10]} 1. e4 {[%emt 0:00:00]} d6 {[%emt 0:00:28]} 2. d4 {[%emt 0:00:00]} Nf6 {[%emt 0:00:07]} 3. Nc3 {[%emt 0:00:01]} g6 {[%emt 0:00:05]} 4. Nf3 {[%emt 0:00:21]} Bg7 {[%emt 0:00:08]} 5. h3 {[%emt 0:00:07]} O-O {[%emt 0:00:25]} 6. Be3 {[%emt 0:00:30]} c5 {[%emt 0:00:20]} (6... b6 $11 {keeps the balance.}) 7. dxc5 $16 {[%emt 0:10:30] B08: Pirc Defence: Classical System} Qa5 {[%emt 0:00:10] next ...Nxe4 is good for Black.} 8. Nd2 {[%emt 0:00:28]} ({Of course not} 8. cxd6 Nxe4 9. Bd2 (9. dxe7 Re8 $11) 9... Nxc3 $15) 8... Nfd7 {[%emt 0:12:55] [#]} ({Black should try} 8... dxc5 9. e5 (9. Nb3 Qc7 10. Bxc5 Rd8 11. Bd3 Nc6 12. Be3 Ne5 13. Qe2 b6 14. O-O Nxd3 15. cxd3 {1-0 (49) Fedorchuk,S (2645)-Shirazi,K (2408) France 2007}) 9... Nfd7) 9. Nd5 $146 {[%emt 0:05:55] White is clearly better.} ({Predecessor:} 9. cxd6 exd6 10. Bd3 Ne5 11. Nb3 Nxd3+ 12. Qxd3 Qa6 13. O-O f5 14. Qc4+ Kh8 {1-0 (26) Herrera,I (2439)-Perez Almeda,E Malaga 2003}) 9... Re8 {[%emt 0:07:51]} 10. c3 {[%emt 0:11:14]} (10. cxd6 $16 exd6 11. c3) 10... e6 $1 $14 {[%emt 0:01:46]} 11. Nb3 {[%emt 0:01:55]} Qd8 {[%emt 0:01:01]} 12. Nf4 {[%emt 0:00:46]} (12. cxd6 $2 exd5 13. exd5 Nf6 $17) 12... dxc5 {[%emt 0:01:41]} 13. Nxc5 {[%emt 0:00:23]} Qc7 {[%emt 0:00:30]} 14. Nb3 {[%emt 0:10:04]} b6 {[%emt 0:03:51]} 15. Qc2 {[%emt 0:14:11]} Bb7 {[%emt 0:00:30]} 16. Be2 {[%emt 0:02:24]} (16. f3 $16) 16... Nc6 {[%emt 0:02:05]} 17. O-O {[%emt 0:01:25]} Nf6 {[%emt 0:01:26]} 18. Rad1 {[%emt 0:04:23]} Nb4 {[%emt 0:06:41]} 19. Qc1 {[%emt 0:00:25]} Nxa2 {[%emt 0:03:19]} 20. Qb1 {[%emt 0:12:11]} ({Better is} 20. Qa1 $1 $11 Nxc3 21. bxc3) 20... Nxc3 $1 $15 {[%emt 0:00:16]} 21. bxc3 {[%emt 0:00:02] [#] Threatens to win with Bd3.} Nxe4 {[%emt 0:00:21]} 22. Rc1 {[%emt 0:03:00]} Nxc3 {[%emt 0:00:22]} 23. Qc2 {[%emt 0:00:03]} (23. Bd2 $15 Rac8 24. Bxc3 Bxc3 25. Nd3) 23... Rec8 {[%emt 0:10:33] Black has strong compensation.} 24. Qd2 {[%emt 0:02:50]} e5 {[%emt 0:07:46]} 25. Nd3 {[%emt 0:02:18]} a5 {[%emt 0:00:22]} (25... Qc6 $17 {[%csl Gb7][%cal Rc6g2]} 26. f3 Qc4) 26. Rfe1 {[%emt 0:04:57]} (26. Bg4 $15 f5 27. Bd1) 26... e4 $2 {[%emt 0:08:24]} (26... a4 $17 27. Na1 a3) 27. Nf4 $1 $11 {[%emt 0:03:13]} Rd8 {[%emt 0:00:57]} 28. Bd4 {[%emt 0:02:15] Precision: White = 44%, Black = 46%.} (28. Nd4 $14 Nxe2+ 29. Ndxe2 (29. Nfxe2 Qd6 $14)) 1-0

[Event "2017 South African Open Ch"]
[Site "Durban"]
[Date "2017.07.16"]
[Round "4"]
[White "Oatlhotse, Providence"]
[Black "Solomons, Deon"]
[Result "1-0"]
[ECO "A55"]
[WhiteElo "2190"]
[BlackElo "2120"]
[Annotator "NA RC"]
[PlyCount "74"]
[EventDate "2017.??.??"]
[EventCountry "RSA"]
[SourceTitle "playchess.com"]
[Source "ChessBase"]
[SourceQuality "1"]
[TimeControl "5400+30"]

{[%evp 13,74,63,68,42,75,40,40,11,63,58,94,93,104,80,86,26,62,-35,43,40,43,9,59,62,72,64,61,55,52,52,34,39,58,40,39,35,31,37,63,52,75,74,76,53,89,90,89,78,60,0,18,21,22,25,34,68,106,0,50,51,77,68,94]} 1. d4 {[%emt 0:00:00]} Nf6 {[%emt 0:00:21]} 2. c4 {[%emt 0:00:00]} d6 {[%emt 0:00:13]} 3. Nf3 {[%emt 0:00:15]} Nbd7 {[%emt 0:02:00]} 4. Nc3 {[%emt 0:00:11]} e5 {[%emt 0:00:57]} 5. e4 {[%emt 0:00:41]} c6 {[%emt 0:02:32]} 6. Be2 {[%emt 0:00:17]} Be7 {[%emt 0:03:07]} 7. O-O {[%emt 0:00:24]} Qc7 {[%emt 0:00:19]} 8. b3 {[%emt 0:02:51] A55: Old Indian Defence with Nf3 and e4} Nf8 {[%emt 0:01:23]} 9. Bb2 {[%emt 0:01:37]} Ng6 {[%emt 0:01:43]} 10. d5 $146 {[%emt 0:05:27]} ({Predecessor:} 10. Qd2 O-O 11. Rfd1 Bg4 12. h3 Bxf3 13. Bxf3 h6 14. g3 Rad8 15. d5 Nh7 {1-0 (59) Stocek,J (2305)-Blatny,P (2525) Czechia 1994}) 10... c5 {[%emt 0:07:07]} (10... Nf4 $11) 11. Ne1 $14 {[%emt 0:00:39]} h5 {[%emt 0:01:05]} 12. Nd3 {[%emt 0:00:37]} a6 {[%emt 0:02:12]} 13. a3 {[%emt 0:00:31]} Bd7 {[%emt 0:04:21]} 14. Qd2 {[%emt 0:21:35]} (14. a4 $16) 14... h4 {[%emt 0:04:37]} 15. b4 {[%emt 0:06:50]} (15. a4 $14) 15... b6 {[%emt 0:06:00]} (15... b5 $15) 16. bxc5 {[%emt 0:03:56]} bxc5 {[%emt 0:00:05]} 17. Rab1 {[%emt 0:03:12]} Nh5 {[%emt 0:07:35]} 18. Bxh5 {[%emt 0:02:39]} Rxh5 {[%emt 0:00:59]} 19. Qd1 {[%emt 0:00:04]} Rh8 {[%emt 0:02:56]} 20. Bc1 {[%emt 0:00:10]} Rb8 {[%emt 0:00:49]} 21. Bd2 {[%emt 0:05:38]} f6 {[%emt 0:03:40]} 22. Rxb8+ {[%emt 0:03:52]} Qxb8 {[%emt 0:00:10]} 23. Qc2 {[%emt 0:00:04]} Kf7 {[%emt 0:01:41]} 24. Rb1 {[%emt 0:00:23]} Qc7 {[%emt 0:00:11]} 25. Qb3 {[%emt 0:00:38]} h3 {[%emt 0:04:04]} 26. g3 $1 {[%emt 0:02:28]} Bc8 {[%emt 0:01:23]} 27. f3 {[%emt 0:03:24]} Rf8 {[%emt 0:02:45]} 28. Na4 {[%emt 0:02:53]} Kg8 {[%emt 0:00:40]} 29. Nb6 {[%emt 0:01:25]} f5 {[%emt 0:02:05]} 30. Nxc8 {[%emt 0:01:18]} Qxc8 {[%emt 0:00:42]} 31. Qb7 {[%emt 0:01:34]} (31. Nf2 $14) 31... Qe8 {[%emt 0:00:04] [#] ...fxe4 is the strong threat.} 32. exf5 {[%emt 0:05:31]} ({Don't capture} 32. Qxa6 $2 fxe4 33. Ne1 (33. fxe4 $2 Qf7 $19) 33... exf3 $19) 32... Rxf5 {[%emt 0:00:45]} 33. Qb8 {[%emt 0:01:18]} ({Wrong is} 33. Qxa6 $2 Rxf3 34. Nxc5 dxc5 $19) 33... Qxb8 {[%emt 0:05:09]} 34. Rxb8+ {[%emt 0:00:27]} Kh7 {[%emt 0:00:16]} 35. Rb3 {[%emt 0:04:37]} (35. Ne1 $16) 35... Rxf3 {[%emt 0:03:43] [#] Threatens to win with ...e4.} (35... e4 $5 36. Nf4 (36. fxe4 Rf3 $11) 36... exf3 $11) 36. Nxc5 $1 {[%emt 0:00:09]} Rxb3 {[%emt 0:00:50]} (36... dxc5 37. Rxf3) 37. Nxb3 {[%emt 0:01:01]} e4 {[%emt 0:01:04] Precision: White = 43%, Black = 31%.} 1-0

[Event "2017 South African Open Ch"]
[Site "Durban"]
[Date "2017.07.16"]
[Round "4"]
[White "Mwale Joseph"]
[Black "Pesa, Mofoka A"]
[Result "1-0"]
[ECO "A05"]
[WhiteElo "2159"]
[BlackElo "1799"]
[Annotator "ChessBase"]
[PlyCount "68"]
[EventDate "2017.??.??"]
[EventCountry "RSA"]
[SourceTitle "playchess.com"]
[Source "ChessBase"]
[SourceQuality "1"]
[TimeControl "5400+30"]

1. Nf3 {[%emt 0:00:00]} Nf6 {[%emt 0:00:53]} 2. g3 {[%emt 0:00:00]} g6 {[%emt 0:01:21]} 3. c4 {[%emt 0:00:46]} Bg7 {[%emt 0:00:15]} 4. Bg2 {[%emt 0:00:04]} d6 {[%emt 0:01:22]} 5. O-O {[%emt 0:02:04]} O-O {[%emt 0:00:04]} 6. d3 {[%emt 0:00:03]} c5 {[%emt 0:00:54]} 7. Nbd2 {[%emt 0:00:29]} Nc6 {[%emt 0:00:32]} 8. Rb1 {[%emt 0:00:18]} Qc7 {[%emt 0:01:18]} 9. a3 {[%emt 0:00:07]} a5 {[%emt 0:01:53]} 10. b3 {[%emt 0:00:09]} Bg4 {[%emt 0:00:13]} 11. Bb2 {[%emt 0:00:07]} Rab8 {[%emt 0:00:11]} 12. h3 {[%emt 0:00:39]} Bd7 {[%emt 0:00:05]} 13. d4 {[%emt 0:00:38]} Bf5 {[%emt 0:06:06]} 14. Rc1 {[%emt 0:00:06]} b6 {[%emt 0:01:18]} 15. g4 {[%emt 0:01:47]} Bc8 {[%emt 0:00:23]} 16. d5 {[%emt 0:00:07]} Na7 {[%emt 0:03:16]} 17. a4 {[%emt 0:01:47]} e5 {[%emt 0:04:23]} 18. dxe6 {[%emt 0:02:50]} fxe6 {[%emt 0:01:19]} 19. g5 {[%emt 0:00:57]} Nh5 {[%emt 0:00:17]} 20. Bxg7 Qxg7 {[%emt 0:03:04]} 21. Ne4 {[%emt 0:01:00]} d5 {[%emt 0:06:09]} 22. cxd5 {[%emt 0:00:41]} Bb7 {[%emt 0:00:18]} 23. Nc3 {[%emt 0:02:25]} exd5 {[%emt 0:01:11]} 24. Nxd5 {[%emt 0:01:41]} Rbd8 {[%emt 0:00:34]} 25. e4 {[%emt 0:00:31]} Nc6 {[%emt 0:01:38]} 26. Qc2 {[%emt 0:03:40]} Rxd5 {[%emt 0:17:12]} 27. exd5 {[%emt 0:14:00]} Nb4 {[%emt 0:00:02]} 28. Qc3 {[%emt 0:00:15]} Qf7 {[%emt 0:03:43]} 29. Ne5 {[%emt 0:16:46]} Qf5 {[%emt 0:05:21]} 30. Ng4 {[%emt 0:00:24]} Qxg5 {[%emt 0:03:36]} 31. Rce1 {[%emt 0:00:24]} Nxd5 {[%emt 0:13:58]} 32. Bxd5+ {[%emt 0:00:31]} Bxd5 {[%emt 0:00:51]} 33. Re5 {[%emt 0:00:22]} Rf5 {[%emt 0:11:44]} 34. Re8+ {[%emt 0:00:16]} Kf7 {[%emt 0:00:47]} 1-0

[Event "2017 South African Open Ch"]
[Site "Durban"]
[Date "2017.07.16"]
[Round "4"]
[White "Mosenya, Ndawana"]
[Black "Vassiliadis, John"]
[Result "1/2-1/2"]
[ECO "B50"]
[WhiteElo "2062"]
[BlackElo "1729"]
[Annotator "NA RC"]
[PlyCount "55"]
[EventDate "2017.??.??"]
[EventCountry "RSA"]
[SourceTitle "playchess.com"]
[Source "ChessBase"]
[SourceQuality "1"]
[TimeControl "5400+30"]

{[%evp 12,55,67,53,32767,32767,32767,32767,32767,32767,68,21,32767,32767,32767,32767,32767,-23,42,25,107,110,123,92,174,197,231,239,287,225,244,252,685,677,673,725,925,1051,1048,1127,2219,2553,29996,29997,29997,29998]} 1. e4 {[%emt 0:01:03]} c5 {[%emt 0:00:12]} 2. Nf3 {[%emt 0:00:20]} d6 {[%emt 0:00:36]} 3. c3 {[%emt 0:00:09]} g6 {[%emt 0:00:55]} 4. d4 {[%emt 0:00:18]} cxd4 {[%emt 0:00:06]} 5. cxd4 {[%emt 0:00:07]} Bg7 {[%emt 0:00:08]} 6. Nc3 {[%emt 0:00:16]} a6 {[%emt 0:00:15] B22: Sicilian: 2 c3} (6... Bg4 7. Bc4 Bxf3 8. Qxf3 e6 9. Bb5+ Kf8 10. Be3 Ne7 11. O-O Nd7 12. Rfd1 h6 13. Rac1 Kg8 14. Ba4 {1-0 (66) Aghamaliyev,C (2494)-Erturan,Y (2362) Konya 2016}) 7. Be2 {[%emt 0:00:40]} e6 {[%emt 0:01:01]} 8. Bg5 {[%emt 0:01:18]} Ne7 {[%emt 0:00:41]} 9. Qd2 $146 {[%emt 0:00:16]} ({Predecessor:} 9. O-O O-O 10. Qd2 Re8 11. d5 e5 12. h3 f5 13. exf5 gxf5 14. Nh2 {1-0 (53) Tochor,J-Salac,J (2170) Czechia 1999}) 9... h6 {[%emt 0:01:09]} 10. Be3 {[%emt 0:01:56]} Nbc6 {[%emt 0:06:00]} 11. h4 {[%emt 0:02:16]} ({Better is} 11. d5 $16 exd5 12. exd5 (12. Nxd5 Nxd5 13. exd5 Ne7 $14)) 11... d5 {[%emt 0:00:37]} 12. e5 {[%emt 0:01:01]} Nf5 {[%emt 0:00:20]} 13. h5 {[%emt 0:00:18]} g5 {[%emt 0:02:30]} 14. Bd3 {[%emt 0:02:32]} Nxe3 {[%emt 0:01:51]} 15. fxe3 {[%emt 0:02:54]} Bd7 {[%emt 0:00:43] [#]} (15... g4 $11 {remains equal.}) 16. Nh2 $1 {[%emt 0:00:28]} Nb4 {[%emt 0:04:27]} 17. Bb1 {[%emt 0:00:30]} Qc7 {[%emt 0:05:47]} (17... Qe7 $16) 18. O-O {[%emt 0:00:42]} Ke7 {[%emt 0:04:27]} 19. Ng4 {[%emt 0:01:33]} Raf8 {[%emt 0:00:07]} 20. a3 {[%emt 0:02:38]} Nc6 {[%emt 0:00:23]} 21. Ba2 {[%emt 0:01:01]} f5 $2 {[%emt 0:01:25]} (21... Kd8 22. Rac1 Kc8) 22. exf6+ $1 {[%emt 0:00:13]} Bxf6 {[%emt 0:00:08]} 23. Nxf6 {[%emt 0:00:51]} Rxf6 {[%emt 0:00:29]} 24. Rxf6 {[%emt 0:00:17]} Kxf6 {[%emt 0:00:15]} 25. Qf2+ {[%emt 0:00:18]} Kg7 {[%emt 0:00:27]} 26. Rf1 {[%emt 0:00:10]} Be8 {[%emt 0:02:24]} 27. Qf6+ {[%emt 0:02:31]} Kg8 {[%emt 0:00:15]} 28. Qf8+ {[%emt 0:00:03]} 1/2-1/2

[Event "2017 South African Open Ch"]
[Site "Durban"]
[Date "2017.07.16"]
[Round "4"]
[White "Choko, Siyabonga V"]
[Black "Jere, Daniel"]
[Result "1/2-1/2"]
[ECO "B32"]
[WhiteElo "1968"]
[BlackElo "2380"]
[Annotator "NA RC"]
[PlyCount "50"]
[EventDate "2017.??.??"]
[EventCountry "RSA"]
[SourceTitle "playchess.com"]
[Source "ChessBase"]
[SourceQuality "1"]
[TimeControl "5400+30"]

{[%evp 9,50,-20,-32,-22,-14,-46,-53,-48,-55,-75,-65,-79,-83,-93,-71,-117,-103,-129,-56,-60,-55,-72,-50,-77,-13,-80,-50,-51,-47,-62,-49,-60,-50,-83,-83,-84,-85,-74,-38,-32,-25,-21,-15]} 1. e4 c5 {[%emt 0:01:58]} 2. Nf3 {[%emt 0:00:44]} Nc6 {[%emt 0:00:08]} 3. d4 {[%emt 0:00:04]} cxd4 {[%emt 0:00:04]} 4. c3 {[%emt 0:00:03]} e6 {[%emt 0:04:04]} (4... dxc3 5. Nxc3 e6 6. Bc4 a6 7. O-O b5 8. Bb3 Bb7 9. Qe2 Nge7 10. Bg5 Na5 11. Bc2 f6 12. Bf4 Ng6 13. Bg3 Rc8 14. Rad1 Bc5 15. h4 O-O 16. h5 Ne7 {½-½ (25) Mosadeghpour,M (2474)-Ghaem Maghami,E (2577) Teheran 2016}) 5. Bc4 {[%emt 0:04:28]} d5 {[%emt 0:03:57]} 6. exd5 {[%emt 0:06:57] B32: Sicilian: Löwenthal and Kalashnikov Variations} exd5 {[%emt 0:00:06]} 7. Qe2+ {[%emt 0:00:05]} Be7 {[%emt 0:02:44]} 8. Bb5 {[%emt 0:00:09] Black is slightly better.} dxc3 $146 {[%emt 0:02:47]} ({Predecessor:} 8... Nf6 9. cxd4 O-O 10. O-O Bg4 11. Be3 Rc8 12. Nc3 {0-1 (20) Sugden,D (1600)-Schofield,J (1800) Bolton 2002}) 9. Nxc3 {[%emt 0:01:11]} Nf6 {[%emt 0:00:13]} 10. Ne5 {[%emt 0:13:21]} Bd7 {[%emt 0:00:22]} 11. O-O {[%emt 0:01:23]} O-O {[%emt 0:00:55]} 12. Rd1 {[%emt 0:01:46]} Nxe5 {[%emt 0:06:38]} 13. Qxe5 {[%emt 0:00:18]} Be6 {[%emt 0:00:14]} ({Black should try} 13... Bxb5 $17 14. Nxb5 Bc5) 14. Bf4 {[%emt 0:08:14]} Bc5 {[%emt 0:09:45] [#] Hoping for ...Ng4.} 15. h3 {[%emt 0:00:19]} Qb6 {[%emt 0:02:05]} 16. Rd2 {[%emt 0:05:18]} Rac8 {[%emt 0:27:05]} (16... Rfd8 $17 {...d4 is the strong threat.} 17. Bf1 {[#]} Ne4 $1 {[%mdl 512]} 18. Nxe4 dxe4) 17. Qe2 {[%emt 0:13:52]} (17. Bh6 $11 Qd8 18. Qg5) 17... Ne4 {[%emt 0:09:09]} 18. Nxe4 {[%emt 0:10:49]} dxe4 {[%emt 0:00:13]} 19. Bd7 {[%emt 0:09:10]} Bxd7 {[%emt 0:05:44]} 20. Rxd7 {[%emt 0:00:08]} Rfe8 {[%emt 0:00:22]} 21. Be3 {[%emt 0:00:51]} Bxe3 {[%emt 0:00:28]} 22. fxe3 {[%emt 0:00:21]} Rc7 {[%emt 0:04:15]} 23. Rad1 {[%emt 0:00:35]} g6 {[%emt 0:01:29]} 24. Qf2 {[%emt 0:02:18] White threatens Qxf7+ and mate.} Rxd7 {[%emt 0:02:14]} 25. Rxd7 {[%emt 0:00:11]} Qe6 {[%emt 0:02:13] Precision: White = 34%, Black = 53%.} 1/2-1/2